[Event "*** Titled Tuesday Blitz"]
[Site "Chess.com"]
[Date "2020.05.05"]
[Round "7"]
[White "Gubajdullin"]
[Black "HarutyunianTigranK"]
[Result "1-0"]
[WhiteElo "2561"]
[BlackElo "2699"]
[TimeControl "180+1"]
[EndTime "11:16:14 PDT"]
[Termination "Gubajdullin won by resignation"]

1. d4 {[%clk 0:03:00.9]} 1... Nf6 {[%clk 0:03:00.1]} 2. Bf4 {[%clk 0:03:00.6]}
2... g6 {[%clk 0:03:00.3]} 3. e3 {[%clk 0:03:00.4]} 3... Bg7 {[%clk 0:03:00.8]}
4. Nf3 {[%clk 0:03:00.5]} 4... O-O {[%clk 0:03:01.3]} 5. Be2 {[%clk 0:03:00.6]}
5... d6 {[%clk 0:03:02]} 6. O-O {[%clk 0:02:58.9]} 6... Nc6 {[%clk 0:03:02.2]}
7. h3 {[%clk 0:02:50.1]} 7... e5 {[%clk 0:03:02.1]} 8. Bh2 {[%clk 0:02:48.7]}
8... Qe7 {[%clk 0:03:00.8]} 9. c3 {[%clk 0:02:41.6]} 9... Ne4 {[%clk 0:02:58.8]}
10. a4 {[%clk 0:02:38.5]} 10... a5 {[%clk 0:02:57.9]} 11. Na3 {[%clk 0:02:38.3]}
11... f5 {[%clk 0:02:56.9]} 12. Re1 {[%clk 0:02:36.7]} 12... Kh8 {[%clk
0:02:54.1]} 13. Nb5 {[%clk 0:02:35.8]} 13... g5 {[%clk 0:02:38.3]} 14. Nd2
{[%clk 0:02:11.6]} 14... Nxd2 {[%clk 0:02:36.3]} 15. Qxd2 {[%clk 0:02:11]} 15...
g4 {[%clk 0:02:36.5]} 16. hxg4 {[%clk 0:02:02.6]} 16... fxg4 {[%clk 0:02:37.4]}
17. Rf1 {[%clk 0:02:02.3]} 17... Bf5 {[%clk 0:02:25.7]} 18. e4 {[%clk 0:01:57]}
18... Bxe4 {[%clk 0:02:21.2]} 19. Bxg4 {[%clk 0:01:56.2]} 19... Rg8 {[%clk
0:02:21.3]} 20. f3 {[%clk 0:01:49.2]} 20... Bf6 {[%clk 0:02:18.2]} 21. Rae1
{[%clk 0:01:43.2]} 21... Bd5 {[%clk 0:02:17.8]} 22. dxe5 {[%clk 0:01:39.9]}
22... Bxe5 {[%clk 0:02:09.4]} 23. Qxd5 {[%clk 0:01:39.1]} 23... Qg5 {[%clk
0:02:04.9]} 24. Nxc7 {[%clk 0:01:33]} 24... Rac8 {[%clk 0:02:01.4]} 25. Bxe5+
{[%clk 0:01:29.3]} 25... Nxe5 {[%clk 0:01:59.7]} 26. Qxd6 {[%clk 0:01:26]} 26...
Nxg4 {[%clk 0:01:52.1]} 27. fxg4 {[%clk 0:01:22.1]} 27... Qxg4 {[%clk 0:01:52]}
28. Qf6+ {[%clk 0:01:18.5]} 28... Rg7 {[%clk 0:01:51.2]} 29. Rf2 {[%clk
0:01:14.4]} 29... Qg3 {[%clk 0:01:46.7]} 30. Re8+ {[%clk 0:01:06.4]} 30... Rxe8
{[%clk 0:01:45.3]} 31. Nxe8 {[%clk 0:01:06]} 1-0

[Event "*** Titled Tuesday Blitz"]
[Site "Chess.com"]
[Date "2020.05.05"]
[Round "7"]
[White "IsikCan"]
[Black "Gyapiking"]
[Result "0-1"]
[WhiteElo "2607"]
[BlackElo "2478"]
[TimeControl "180+1"]
[EndTime "11:16:17 PDT"]
[Termination "Gyapiking won by resignation"]

1. e4 {[%clk 0:03:00.9]} 1... Nc6 {[%clk 0:02:59.4]} 2. d4 {[%clk 0:03:01]} 2...
d5 {[%clk 0:02:59.4]} 3. e5 {[%clk 0:03:01.4]} 3... Bf5 {[%clk 0:02:58.6]} 4.
Nf3 {[%clk 0:03:00.9]} 4... e6 {[%clk 0:02:57.7]} 5. Bd3 {[%clk 0:03:01.2]} 5...
Bxd3 {[%clk 0:02:56.2]} 6. Qxd3 {[%clk 0:03:02.1]} 6... Nge7 {[%clk 0:02:50.6]}
7. c3 {[%clk 0:02:59]} 7... Nf5 {[%clk 0:02:50.1]} 8. b4 {[%clk 0:02:58.1]} 8...
h5 {[%clk 0:02:48.9]} 9. a4 {[%clk 0:02:55.7]} 9... Be7 {[%clk 0:02:47.7]} 10.
a5 {[%clk 0:02:53.2]} 10... a6 {[%clk 0:02:47]} 11. h3 {[%clk 0:02:49.2]} 11...
Qd7 {[%clk 0:02:45.7]} 12. Na3 {[%clk 0:02:47.8]} 12... Na7 {[%clk 0:02:43.8]}
13. Nc2 {[%clk 0:02:44.3]} 13... Nb5 {[%clk 0:02:43.6]} 14. Bd2 {[%clk
0:02:44.3]} 14... Qc6 {[%clk 0:02:43.1]} 15. Ke2 {[%clk 0:02:41.3]} 15... h4
{[%clk 0:02:42.1]} 16. Rag1 {[%clk 0:02:37]} 16... O-O-O {[%clk 0:02:41.3]} 17.
g4 {[%clk 0:02:34.9]} 17... hxg3 {[%clk 0:02:40.2]} 18. fxg3 {[%clk 0:02:35.8]}
18... Qe8 {[%clk 0:02:36.5]} 19. g4 {[%clk 0:02:30.5]} 19... Nh4 {[%clk
0:02:36.4]} 20. Nxh4 {[%clk 0:02:29.4]} 20... Rxh4 {[%clk 0:02:34.6]} 21. Be1
{[%clk 0:02:29]} 21... Rh8 {[%clk 0:02:33.4]} 22. h4 {[%clk 0:02:27.6]} 22... f6
{[%clk 0:02:30.5]} 23. exf6 {[%clk 0:02:21.7]} 23... Bxf6 {[%clk 0:02:29]} 24.
g5 {[%clk 0:02:20.9]} 24... Be7 {[%clk 0:02:19.9]} 25. Ne3 {[%clk 0:02:19.6]}
25... Kb8 {[%clk 0:02:17.8]} 26. Ng4 {[%clk 0:02:18]} 26... Bd6 {[%clk
0:02:14.5]} 27. Kd1 {[%clk 0:02:12.7]} 27... Na3 {[%clk 0:02:12.4]} 28. Bg3
{[%clk 0:02:04.5]} 28... Qa4+ {[%clk 0:02:09.3]} 29. Ke2 {[%clk 0:02:03.4]}
29... Nc4 {[%clk 0:02:08.7]} 30. Ra1 {[%clk 0:02:00.7]} 30... Qe8 {[%clk
0:02:06.6]} 31. Bxd6 {[%clk 0:01:55.6]} 31... cxd6 {[%clk 0:02:05.9]} 32. g6
{[%clk 0:01:40.7]} 32... e5 {[%clk 0:02:05]} 33. dxe5 {[%clk 0:01:19.3]} 33...
dxe5 {[%clk 0:02:04.8]} 34. h5 {[%clk 0:01:17.2]} 34... Qe6 {[%clk 0:01:56.9]}
35. b5 {[%clk 0:00:53.3]} 35... Qxg4+ {[%clk 0:01:55.3]} 0-1

[Event "*** Titled Tuesday Blitz"]
[Site "Chess.com"]
[Date "2020.05.05"]
[Round "7"]
[White "gui_borba"]
[Black "Zhani-Z"]
[Result "0-1"]
[WhiteElo "2363"]
[BlackElo "2511"]
[TimeControl "180+1"]
[EndTime "11:16:23 PDT"]
[Termination "Zhani-Z won by resignation"]

1. d4 {[%clk 0:03:00.9]} 1... e6 {[%clk 0:02:57.1]} 2. e4 {[%clk 0:02:59]} 2...
d5 {[%clk 0:02:54.9]} 3. e5 {[%clk 0:02:59.4]} 3... c5 {[%clk 0:02:53.6]} 4. c3
{[%clk 0:03:00.1]} 4... Nc6 {[%clk 0:02:51.8]} 5. Nf3 {[%clk 0:03:00.7]} 5...
Qb6 {[%clk 0:02:51.4]} 6. a3 {[%clk 0:03:01.2]} 6... Nh6 {[%clk 0:02:49.3]} 7.
b4 {[%clk 0:03:01.3]} 7... cxd4 {[%clk 0:02:48.7]} 8. b5 {[%clk 0:03:01.6]} 8...
Na5 {[%clk 0:02:43.4]} 9. Bxh6 {[%clk 0:03:02]} 9... gxh6 {[%clk 0:02:42.7]} 10.
cxd4 {[%clk 0:03:02.7]} 10... Bg7 {[%clk 0:02:41.7]} 11. Nbd2 {[%clk 0:03:01.6]}
11... O-O {[%clk 0:02:38.5]} 12. Bd3 {[%clk 0:03:01.8]} 12... Bd7 {[%clk
0:02:35.6]} 13. O-O {[%clk 0:02:58.4]} 13... f6 {[%clk 0:02:33.9]} 14. exf6
{[%clk 0:02:34.3]} 14... Bxf6 {[%clk 0:02:29.7]} 15. Re1 {[%clk 0:02:34.5]}
15... Bxd4 {[%clk 0:02:26.4]} 16. Nxd4 {[%clk 0:02:30.5]} 16... Qxd4 {[%clk
0:02:27.3]} 17. Nf3 {[%clk 0:02:30.9]} 17... Qf6 {[%clk 0:02:18.6]} 18. Qc2
{[%clk 0:02:25.7]} 18... Rac8 {[%clk 0:02:17.1]} 19. Bxh7+ {[%clk 0:02:11.8]}
19... Kh8 {[%clk 0:02:16.9]} 20. Qb1 {[%clk 0:02:12.1]} 20... Qg7 {[%clk
0:02:12.4]} 21. Bd3 {[%clk 0:02:07.4]} 21... Rxf3 {[%clk 0:02:11.5]} 22. Bf1
{[%clk 0:01:57.6]} 22... Rcf8 {[%clk 0:02:05]} 23. Ra2 {[%clk 0:01:56.5]} 23...
R3f6 {[%clk 0:01:54.4]} 24. Qb4 {[%clk 0:01:52.2]} 24... b6 {[%clk 0:01:52.1]}
25. Rc2 {[%clk 0:01:47.8]} 25... Nb7 {[%clk 0:01:47.5]} 26. Rc7 {[%clk
0:01:30.2]} 26... Nc5 {[%clk 0:01:46.9]} 27. Qh4 {[%clk 0:01:30.6]} 27... Rxf2
{[%clk 0:01:42.8]} 28. Qxf2 {[%clk 0:01:19.2]} 28... Rxf2 {[%clk 0:01:42.2]} 29.
Kxf2 {[%clk 0:01:20.1]} 29... Ne4+ {[%clk 0:01:36]} 30. Kg1 {[%clk 0:01:18.6]}
30... Qd4+ {[%clk 0:01:35.3]} 0-1

[Event "*** Titled Tuesday Blitz"]
[Site "Chess.com"]
[Date "2020.05.05"]
[Round "7"]
[White "HaryKane"]
[Black "Caterpiller35"]
[Result "0-1"]
[WhiteElo "2572"]
[BlackElo "2303"]
[TimeControl "180+1"]
[EndTime "11:16:25 PDT"]
[Termination "Caterpiller35 won by resignation"]

1. e4 {[%clk 0:03:00.9]} 1... c5 {[%clk 0:02:59.6]} 2. Nf3 {[%clk 0:03:00.5]}
2... Nc6 {[%clk 0:02:59.9]} 3. Bb5 {[%clk 0:02:59]} 3... g6 {[%clk 0:02:59.8]}
4. Bxc6 {[%clk 0:02:55]} 4... bxc6 {[%clk 0:03:00.1]} 5. O-O {[%clk 0:02:54.7]}
5... Bg7 {[%clk 0:03:00]} 6. Re1 {[%clk 0:02:55.4]} 6... Nh6 {[%clk 0:02:59.3]}
7. c3 {[%clk 0:02:53.4]} 7... O-O {[%clk 0:02:59.3]} 8. d4 {[%clk 0:02:53.6]}
8... cxd4 {[%clk 0:02:59.3]} 9. cxd4 {[%clk 0:02:54.5]} 9... d6 {[%clk
0:02:59.8]} 10. Nc3 {[%clk 0:02:53.9]} 10... Rb8 {[%clk 0:02:58.7]} 11. b3
{[%clk 0:02:53.7]} 11... c5 {[%clk 0:02:57.1]} 12. Bb2 {[%clk 0:02:49.3]} 12...
cxd4 {[%clk 0:02:56.4]} 13. Nxd4 {[%clk 0:02:49.8]} 13... Bb7 {[%clk 0:02:55.6]}
14. Nd5 {[%clk 0:02:37.7]} 14... e6 {[%clk 0:02:52.7]} 15. Nc3 {[%clk 0:02:27]}
15... Qh4 {[%clk 0:02:46.2]} 16. Nf3 {[%clk 0:02:24.1]} 16... Qh5 {[%clk
0:02:45.8]} 17. Qxd6 {[%clk 0:02:19.3]} 17... Rfd8 {[%clk 0:02:42.5]} 18. Qg3
{[%clk 0:02:10.8]} 18... Rbc8 {[%clk 0:02:42.3]} 19. Rac1 {[%clk 0:02:10.1]}
19... Ng4 {[%clk 0:02:33]} 20. Na4 {[%clk 0:01:43.8]} 20... Rxc1 {[%clk
0:02:27.1]} 21. Bxc1 {[%clk 0:01:36.6]} 21... Ne5 {[%clk 0:02:19.6]} 22. Nxe5
{[%clk 0:01:26.2]} 22... Bxe5 {[%clk 0:02:19.3]} 23. Bf4 {[%clk 0:01:24.4]}
23... Qd1 {[%clk 0:02:08.9]} 24. Kf1 {[%clk 0:00:19]} 24... Ba6+ {[%clk
0:02:06.1]} 0-1

[Event "*** Titled Tuesday Blitz"]
[Site "Chess.com"]
[Date "2020.05.05"]
[Round "7"]
[White "vanyakuba"]
[Black "martabartel"]
[Result "1-0"]
[WhiteElo "2439"]
[BlackElo "2288"]
[TimeControl "180+1"]
[EndTime "11:16:34 PDT"]
[Termination "vanyakuba won by resignation"]

1. e4 {[%clk 0:02:56.5]} 1... c5 {[%clk 0:02:58.6]} 2. c3 {[%clk 0:02:56]} 2...
g6 {[%clk 0:02:57.6]} 3. d4 {[%clk 0:02:55.8]} 3... cxd4 {[%clk 0:02:57.6]} 4.
cxd4 {[%clk 0:02:56.7]} 4... d5 {[%clk 0:02:57.8]} 5. exd5 {[%clk 0:02:57.1]}
5... Nf6 {[%clk 0:02:55]} 6. Nc3 {[%clk 0:02:57.4]} 6... Bg7 {[%clk 0:02:54.7]}
7. Qb3 {[%clk 0:02:54.8]} 7... O-O {[%clk 0:02:53.3]} 8. g3 {[%clk 0:02:54.8]}
8... Na6 {[%clk 0:02:52.9]} 9. Bg2 {[%clk 0:02:53.9]} 9... Nc7 {[%clk
0:02:52.8]} 10. Nge2 {[%clk 0:02:54]} 10... Rb8 {[%clk 0:02:52]} 11. a4 {[%clk
0:02:51.2]} 11... b6 {[%clk 0:02:51.6]} 12. O-O {[%clk 0:02:45.3]} 12... Bb7
{[%clk 0:02:51.3]} 13. Bf4 {[%clk 0:02:34.8]} 13... Rc8 {[%clk 0:02:48.1]} 14.
d6 {[%clk 0:02:20.9]} 14... Bxg2 {[%clk 0:01:08.2]} 15. dxc7 {[%clk 0:02:20.3]}
15... Qd7 {[%clk 0:00:41.5]} 16. Kxg2 {[%clk 0:02:16.7]} 16... h5 {[%clk
0:00:40.5]} 17. Qb5 {[%clk 0:02:00.1]} 17... Qe6 {[%clk 0:00:37.6]} 18. d5
{[%clk 0:01:51.1]} 18... Qf5 {[%clk 0:00:37.3]} 19. d6 {[%clk 0:01:48]} 19...
Qe6 {[%clk 0:00:27]} 20. Nd4 {[%clk 0:01:45.4]} 20... Qg4 {[%clk 0:00:14.1]} 1-0

[Event "*** Titled Tuesday Blitz"]
[Site "Chess.com"]
[Date "2020.05.05"]
[Round "7"]
[White "Philosopherrr"]
[Black "bancsoo"]
[Result "0-1"]
[WhiteElo "2500"]
[BlackElo "2737"]
[TimeControl "180+1"]
[EndTime "11:16:35 PDT"]
[Termination "bancsoo won by resignation"]

1. Nf3 {[%clk 0:03:00.8]} 1... d5 {[%clk 0:03:00]} 2. b3 {[%clk 0:02:56.7]} 2...
Bg4 {[%clk 0:02:59.2]} 3. Ne5 {[%clk 0:02:56]} 3... Bf5 {[%clk 0:02:58.9]} 4.
Bb2 {[%clk 0:02:55.2]} 4... e6 {[%clk 0:02:58.6]} 5. e3 {[%clk 0:02:54.4]} 5...
Nd7 {[%clk 0:02:56.6]} 6. Nxd7 {[%clk 0:02:52.2]} 6... Qxd7 {[%clk 0:02:56.8]}
7. Be2 {[%clk 0:02:52.2]} 7... c6 {[%clk 0:02:56.5]} 8. O-O {[%clk 0:02:52]}
8... Nf6 {[%clk 0:02:56.6]} 9. d3 {[%clk 0:02:52]} 9... h6 {[%clk 0:02:56.6]}
10. Nd2 {[%clk 0:02:51.8]} 10... Be7 {[%clk 0:02:56.8]} 11. Bf3 {[%clk
0:02:45.5]} 11... Bh7 {[%clk 0:02:55.5]} 12. e4 {[%clk 0:02:45.1]} 12... O-O
{[%clk 0:02:54.7]} 13. Qe2 {[%clk 0:02:43.2]} 13... a5 {[%clk 0:02:54.3]} 14. a3
{[%clk 0:02:43]} 14... Rfd8 {[%clk 0:02:52]} 15. Rfe1 {[%clk 0:02:41.9]} 15...
Bc5 {[%clk 0:02:39.4]} 16. e5 {[%clk 0:02:36.3]} 16... Ne8 {[%clk 0:02:39]} 17.
Nf1 {[%clk 0:02:21.4]} 17... Nc7 {[%clk 0:02:38.7]} 18. a4 {[%clk 0:02:09.5]}
18... Bb4 {[%clk 0:02:30.1]} 19. c3 {[%clk 0:02:07.5]} 19... Be7 {[%clk
0:02:29.5]} 20. d4 {[%clk 0:02:02.6]} 20... b5 {[%clk 0:02:28.4]} 21. Ne3 {[%clk
0:01:59.5]} 21... Rdb8 {[%clk 0:02:28.1]} 22. axb5 {[%clk 0:01:39.3]} 22... Rxb5
{[%clk 0:02:25.1]} 23. Qd1 {[%clk 0:01:13.7]} 23... Rab8 {[%clk 0:02:25]} 24.
Ba3 {[%clk 0:01:13.3]} 24... Rxb3 {[%clk 0:02:24]} 25. Bxe7 {[%clk 0:01:13.5]}
25... Qxe7 {[%clk 0:02:24.7]} 26. Rxa5 {[%clk 0:01:13.2]} 26... Rxc3 {[%clk
0:02:25.2]} 27. Qa1 {[%clk 0:01:10.1]} 27... Rcb3 {[%clk 0:02:15.1]} 28. Rc5
{[%clk 0:01:06.8]} 28... Rb1 {[%clk 0:02:09.6]} 29. Qa5 {[%clk 0:01:00.8]} 29...
Rxe1+ {[%clk 0:02:06.2]} 30. Qxe1 {[%clk 0:01:00.6]} 30... Rb1 {[%clk 0:02:05]}
31. Rc1 {[%clk 0:01:00.9]} 31... Rxc1 {[%clk 0:01:56.4]} 32. Qxc1 {[%clk
0:01:01.8]} 32... Nb5 {[%clk 0:01:55.2]} 33. Qb2 {[%clk 0:00:57.5]} 33... Qa7
{[%clk 0:01:53.4]} 0-1

[Event "*** Titled Tuesday Blitz"]
[Site "Chess.com"]
[Date "2020.05.05"]
[Round "7"]
[White "Colombiano07"]
[Black "Manukyan_Artak"]
[Result "1-0"]
[WhiteElo "2182"]
[BlackElo "2332"]
[TimeControl "180+1"]
[EndTime "11:16:40 PDT"]
[Termination "Colombiano07 won by resignation"]

1. d4 {[%clk 0:02:57.8]} 1... Nf6 {[%clk 0:02:59.4]} 2. Nf3 {[%clk 0:02:55.9]}
2... d5 {[%clk 0:02:59]} 3. e3 {[%clk 0:02:56.1]} 3... Bg4 {[%clk 0:02:59.2]} 4.
Bd3 {[%clk 0:02:57]} 4... e6 {[%clk 0:02:59]} 5. Nbd2 {[%clk 0:02:57.6]} 5... c5
{[%clk 0:02:58.8]} 6. h3 {[%clk 0:02:58.2]} 6... Bh5 {[%clk 0:02:58.5]} 7. b3
{[%clk 0:02:58.8]} 7... Nc6 {[%clk 0:02:57.7]} 8. Bb2 {[%clk 0:02:59.4]} 8...
cxd4 {[%clk 0:02:57.1]} 9. exd4 {[%clk 0:02:58.8]} 9... Bd6 {[%clk 0:02:54.8]}
10. O-O {[%clk 0:02:59.2]} 10... O-O {[%clk 0:02:50.8]} 11. a3 {[%clk
0:02:59.7]} 11... Rc8 {[%clk 0:02:48.3]} 12. Qe2 {[%clk 0:02:59.4]} 12... Bb8
{[%clk 0:02:45.6]} 13. Rfe1 {[%clk 0:02:55.6]} 13... a6 {[%clk 0:02:39.8]} 14.
Qe3 {[%clk 0:02:53.7]} 14... Bg6 {[%clk 0:02:35.5]} 15. Ne5 {[%clk 0:02:53.4]}
15... Nxe5 {[%clk 0:02:32.9]} 16. dxe5 {[%clk 0:02:52.8]} 16... Nd7 {[%clk
0:02:31.3]} 17. Nf3 {[%clk 0:02:49]} 17... Bxd3 {[%clk 0:02:24.7]} 18. cxd3
{[%clk 0:02:49.9]} 18... Nc5 {[%clk 0:01:53.7]} 19. b4 {[%clk 0:02:46.4]} 19...
Na4 {[%clk 0:01:34.2]} 20. Bd4 {[%clk 0:02:45.2]} 20... b5 {[%clk 0:01:24.7]}
21. Rac1 {[%clk 0:02:43.7]} 21... Qd7 {[%clk 0:01:22.9]} 22. Rxc8 {[%clk
0:02:42.3]} 22... Rxc8 {[%clk 0:01:22.6]} 23. Rc1 {[%clk 0:02:43.2]} 23... h6
{[%clk 0:01:20.1]} 24. Bc5 {[%clk 0:02:35.2]} 24... Rc6 {[%clk 0:01:14]} 25. Nd4
{[%clk 0:02:28.5]} 25... Rc7 {[%clk 0:01:13.1]} 26. Nb3 {[%clk 0:02:28.8]} 26...
Qc8 {[%clk 0:01:08.7]} 27. d4 {[%clk 0:02:11.8]} 27... Nb2 {[%clk 0:01:06.5]}
28. Qg3 {[%clk 0:02:06.8]} 28... Nc4 {[%clk 0:01:03.1]} 29. Rf1 {[%clk
0:02:04.2]} 29... Ba7 {[%clk 0:00:46.7]} 30. Bxa7 {[%clk 0:02:02.2]} 30... Rxa7
{[%clk 0:00:46.8]} 31. Nc5 {[%clk 0:02:03.1]} 31... Nxa3 {[%clk 0:00:44.7]} 32.
Qxa3 {[%clk 0:02:01.5]} 32... a5 {[%clk 0:00:44.5]} 33. bxa5 {[%clk 0:02:00.9]}
33... Qc6 {[%clk 0:00:44.7]} 34. a6 {[%clk 0:02:00.5]} 34... Qb6 {[%clk
0:00:43.5]} 35. Rb1 {[%clk 0:01:59.6]} 35... g5 {[%clk 0:00:39.3]} 36. Qb4
{[%clk 0:01:59]} 36... Qd8 {[%clk 0:00:37.1]} 37. Qxb5 {[%clk 0:01:59.1]} 37...
f6 {[%clk 0:00:36.1]} 38. Qb8 {[%clk 0:01:58.6]} 1-0

[Event "*** Titled Tuesday Blitz"]
[Site "Chess.com"]
[Date "2020.05.05"]
[Round "7"]
[White "Leo_C"]
[Black "Gromes7"]
[Result "1/2-1/2"]
[WhiteElo "2259"]
[BlackElo "2103"]
[TimeControl "180+1"]
[EndTime "11:16:47 PDT"]
[Termination "Game drawn by repetition"]

1. d4 {[%clk 0:03:00.9]} 1... Nf6 {[%clk 0:02:59.2]} 2. c4 {[%clk 0:03:00.4]}
2... e5 {[%clk 0:02:58.9]} 3. dxe5 {[%clk 0:02:57.2]} 3... Ng4 {[%clk 0:02:59]}
4. Nf3 {[%clk 0:02:56.5]} 4... Bc5 {[%clk 0:02:58.5]} 5. e3 {[%clk 0:02:56.6]}
5... Nc6 {[%clk 0:02:58.2]} 6. a3 {[%clk 0:02:55.8]} 6... a5 {[%clk 0:02:57.3]}
7. Nc3 {[%clk 0:02:51.4]} 7... Ngxe5 {[%clk 0:02:56.9]} 8. Nxe5 {[%clk
0:02:51.1]} 8... Nxe5 {[%clk 0:02:57.8]} 9. b3 {[%clk 0:02:49.9]} 9... O-O
{[%clk 0:02:56.9]} 10. Be2 {[%clk 0:02:49.7]} 10... Re8 {[%clk 0:02:56.2]} 11.
O-O {[%clk 0:02:49.7]} 11... Ra6 {[%clk 0:02:52.2]} 12. Ne4 {[%clk 0:02:44.7]}
12... Ba7 {[%clk 0:02:48.5]} 13. Ng3 {[%clk 0:02:44.8]} 13... Rg6 {[%clk
0:02:20.2]} 14. Bh5 {[%clk 0:02:37.8]} 14... Rd6 {[%clk 0:01:56.9]} 15. Qc2
{[%clk 0:02:32.1]} 15... Qh4 {[%clk 0:01:35.9]} 16. Bb2 {[%clk 0:02:20.3]} 16...
Rh6 {[%clk 0:01:28]} 17. h3 {[%clk 0:02:04.9]} 17... Rxh5 {[%clk 0:01:25.7]} 18.
Nxh5 {[%clk 0:02:05.8]} 18... Qxh5 {[%clk 0:01:25.7]} 19. c5 {[%clk 0:02:05.3]}
19... d6 {[%clk 0:01:15.4]} 20. cxd6 {[%clk 0:02:03.6]} 20... cxd6 {[%clk
0:01:16.3]} 21. Qc3 {[%clk 0:01:56]} 21... Bxh3 {[%clk 0:01:04.8]} 22. f4 {[%clk
0:01:50.8]} 22... Bxg2 {[%clk 0:00:56.1]} 23. Kxg2 {[%clk 0:01:46.9]} 23... Qg4+
{[%clk 0:00:55.8]} 24. Kh2 {[%clk 0:01:33.1]} 24... Qh4+ {[%clk 0:00:27.1]} 25.
Kg2 {[%clk 0:01:30.8]} 25... Qg4+ {[%clk 0:00:27.3]} 26. Kh2 {[%clk 0:01:30.8]}
26... Qh4+ {[%clk 0:00:26.7]} 27. Kg2 {[%clk 0:01:30.9]} 27... Qg4+ {[%clk
0:00:25.2]} 1/2-1/2

[Event "*** Titled Tuesday Blitz"]
[Site "Chess.com"]
[Date "2020.05.05"]
[Round "7"]
[White "ItsCheckM8Mate"]
[Black "lucasmito"]
[Result "0-1"]
[WhiteElo "2268"]
[BlackElo "2428"]
[TimeControl "180+1"]
[EndTime "11:16:48 PDT"]
[Termination "lucasmito won by resignation"]

1. e4 {[%clk 0:03:00.9]} 1... e5 {[%clk 0:02:59.7]} 2. Nf3 {[%clk 0:03:00.7]}
2... Nc6 {[%clk 0:02:59.7]} 3. Bb5 {[%clk 0:03:00.8]} 3... f5 {[%clk 0:02:55.8]}
4. Nc3 {[%clk 0:02:58.1]} 4... fxe4 {[%clk 0:02:56]} 5. Nxe4 {[%clk 0:02:57.7]}
5... d5 {[%clk 0:02:54.1]} 6. Nxe5 {[%clk 0:02:48.4]} 6... dxe4 {[%clk
0:02:53.7]} 7. Qh5+ {[%clk 0:02:31.1]} 7... g6 {[%clk 0:02:50.8]} 8. Nxg6 {[%clk
0:02:27.5]} 8... hxg6 {[%clk 0:02:51.7]} 9. Qxh8 {[%clk 0:02:26.1]} 9... Be6
{[%clk 0:02:52]} 10. O-O {[%clk 0:02:16.5]} 10... Qd5 {[%clk 0:02:45.2]} 11. c4
{[%clk 0:02:06]} 11... Qd6 {[%clk 0:02:39.9]} 12. Qh4 {[%clk 0:01:51.1]} 12...
Ne7 {[%clk 0:02:26.6]} 13. Qxe4 {[%clk 0:01:47]} 13... O-O-O {[%clk 0:02:24]}
14. d4 {[%clk 0:01:31.4]} 14... Nxd4 {[%clk 0:02:20.3]} 15. Bf4 {[%clk
0:01:29.8]} 15... Qxf4 {[%clk 0:02:08.4]} 16. Qxf4 {[%clk 0:01:15.7]} 16... Ne2+
{[%clk 0:02:05.7]} 17. Kh1 {[%clk 0:01:16.6]} 17... Nxf4 {[%clk 0:02:06.2]} 18.
Rfe1 {[%clk 0:01:17]} 18... Bf5 {[%clk 0:01:54.5]} 19. c5 {[%clk 0:01:10.9]}
19... a6 {[%clk 0:01:50.9]} 20. Bc4 {[%clk 0:01:08.8]} 20... Bd7 {[%clk
0:01:40.2]} 21. g3 {[%clk 0:01:00.9]} 21... Bc6+ {[%clk 0:01:39.4]} 22. Kg1
{[%clk 0:00:59.3]} 22... Nd3 {[%clk 0:01:22.6]} 23. Re2 {[%clk 0:00:51.7]} 23...
Nxc5 {[%clk 0:01:20.6]} 24. Rae1 {[%clk 0:00:49.1]} 24... Nf5 {[%clk 0:01:16.7]}
25. h4 {[%clk 0:00:45.3]} 25... Nd4 {[%clk 0:01:16.3]} 0-1

[Event "*** Titled Tuesday Blitz"]
[Site "Chess.com"]
[Date "2020.05.05"]
[Round "7"]
[White "pgradalski"]
[Black "Xeslu"]
[Result "0-1"]
[WhiteElo "2202"]
[BlackElo "2367"]
[TimeControl "180+1"]
[EndTime "11:16:50 PDT"]
[Termination "Xeslu won by resignation"]

1. e4 {[%clk 0:03:00.9]} 1... c5 {[%clk 0:02:53.7]} 2. c3 {[%clk 0:02:58.4]}
2... d5 {[%clk 0:02:52.8]} 3. exd5 {[%clk 0:02:57.5]} 3... Qxd5 {[%clk
0:02:53.3]} 4. d4 {[%clk 0:02:57.6]} 4... g6 {[%clk 0:02:52.3]} 5. Nf3 {[%clk
0:02:55.3]} 5... Bg7 {[%clk 0:02:49.8]} 6. Be2 {[%clk 0:02:43.3]} 6... cxd4
{[%clk 0:02:44.4]} 7. cxd4 {[%clk 0:02:43.2]} 7... Nf6 {[%clk 0:02:43.1]} 8. Nc3
{[%clk 0:02:42.9]} 8... Qd8 {[%clk 0:02:42.4]} 9. Be3 {[%clk 0:02:41.1]} 9...
O-O {[%clk 0:02:40.8]} 10. O-O {[%clk 0:02:39.2]} 10... Nbd7 {[%clk 0:02:40.3]}
11. Rc1 {[%clk 0:02:31.9]} 11... Nb6 {[%clk 0:02:40]} 12. Ne5 {[%clk 0:02:16]}
12... Nfd5 {[%clk 0:02:39.3]} 13. Nxd5 {[%clk 0:02:03]} 13... Nxd5 {[%clk
0:02:38.1]} 14. Qb3 {[%clk 0:02:00.3]} 14... Be6 {[%clk 0:02:23.6]} 15. Qxb7
{[%clk 0:01:50.9]} 15... Nxe3 {[%clk 0:02:14.8]} 16. fxe3 {[%clk 0:01:47.2]}
16... Bxe5 {[%clk 0:02:13.9]} 17. dxe5 {[%clk 0:01:46]} 17... Rb8 {[%clk
0:02:13.7]} 18. Qxa7 {[%clk 0:01:41.2]} 18... Rxb2 {[%clk 0:02:13.4]} 19. Bc4
{[%clk 0:01:36.1]} 19... Bxc4 {[%clk 0:02:12.5]} 20. Rxc4 {[%clk 0:01:34]} 20...
Qd5 {[%clk 0:02:11.7]} 21. Rg4 {[%clk 0:01:30.2]} 21... Rxa2 {[%clk 0:02:08.3]}
22. Qd4 {[%clk 0:01:28.9]} 22... Qe6 {[%clk 0:01:54]} 23. Rgf4 {[%clk
0:01:24.4]} 23... Ra5 {[%clk 0:01:52]} 24. e4 {[%clk 0:01:20]} 24... Rxe5 {[%clk
0:01:49.7]} 25. h3 {[%clk 0:01:17.4]} 25... f6 {[%clk 0:01:46.3]} 26. Qb4 {[%clk
0:01:13]} 26... Rc8 {[%clk 0:01:42.4]} 27. Ra1 {[%clk 0:01:09.2]} 27... Rc4
{[%clk 0:01:38.3]} 28. Qb8+ {[%clk 0:01:07.8]} 28... Rc8 {[%clk 0:01:34.5]} 29.
Qb4 {[%clk 0:01:04.9]} 29... Qc4 {[%clk 0:01:29.9]} 30. Qxc4+ {[%clk 0:01:01.7]}
30... Rxc4 {[%clk 0:01:29.2]} 31. Re1 {[%clk 0:01:00.6]} 31... g5 {[%clk
0:01:24.6]} 32. Rf5 {[%clk 0:00:56.8]} 32... Rcxe4 {[%clk 0:01:20.4]} 33. Rd1
{[%clk 0:00:56.9]} 33... Rxf5 {[%clk 0:01:17.9]} 0-1